bitfinex-derivatives/quotes_SOLF0:USTF0_20250413
["timestamp","ask_amount","ask_price","bid_price","bid_amount"]
[1744580832931,37.82,126.56,126.48,59.81977758]
[1744580833330,37.82,126.56,126.54,7.9045]
[1744580833922,37.82,126.56,126.54,7.95494368]
[1744580836232,37.82,126.56,126.55,7.9042]
[1744580836630,626.8,126.58,126.55,7.9042]
[1744580840235,634.7023,126.58,126.54,7.95494368]
[1744580841130,626.8,126.58,126.55,7.9039]
[1744580842433,626.8,126.58,126.54,7.95494368]
[1744580843131,634.7024,126.58,126.54,7.95494368]
[1744580847333,17.3021776,126.57,126.54,0.05044368]
[1744580847530,9.3990776,126.55,126.54,0.05044368]
[1744580847730,47.1590776,126.55,126.48,16.6969776]
[1744580847926,9.3990776,126.53,126.48,16.6969776]
[1744580848128,9.3990776,126.53,126.48,7.2979]
[1744580848328,9.3990776,126.53,126.46,9.3990776]
[1744580848532,9.3990776,126.51,126.46,7.9095]
[1744580848829,47.1590776,126.51,126.46,7.9095]
[1744580849035,0.05044368,126.5,126.47,0.06093848]
[1744580849834,7.9086,126.48,126.47,0.06093848]
[1744580850037,14.75732856,126.5,126.43,61.75045208]
[1744580850330,640.94688488,126.5,126.43,61.75045208]
[1744580851439,7.9095,126.47,126.45,0.0520205]
[1744580851729,0.05410617,126.48,126.45,0.0520205]
[1744580851934,7.9095,126.47,126.45,0.0520205]
[1744580854636,37.81410617,126.48,126.45,0.0520205]
[1744580855436,7.9096,126.47,126.45,0.0520205]
[1744580855637,37.81410617,126.48,126.45,0.0520205]
[1744580855839,52.52099105,126.48,126.45,0.0520205]
[1744580856039,7.9098,126.46,126.45,0.0520205]
[1744580856637,7.9095,126.47,126.45,0.0520205]
[1744580856939,52.52099105,126.48,126.45,0.0520205]
[1744580859138,7.9092,126.47,126.45,0.0520205]
[1744580859734,60.43009105,126.48,126.45,0.0520205]
[1744580859931,45.72320617,126.48,126.45,0.0520205]
[1744580861438,7.9093,126.47,126.45,0.0520205]
[1744580863544,37.81410617,126.48,126.45,0.0520205]
[1744580866146,7.9098,126.47,126.45,0.0520205]
[1744580867244,45.6898,126.47,126.45,0.0520205]
[1744580873148,55.10632549,126.47,126.45,0.0520205]
[1744580874547,7.9098,126.46,126.45,0.0520205]
[1744580884758,55.10592549,126.47,126.45,0.0520205]
[1744580884965,47.19652549,126.47,126.45,0.0520205]
[1744580885353,37.78,126.47,126.45,0.0520205]
[1744580885759,7.9098,126.46,126.45,0.0520205]
[1744580888064,45.6895,126.47,126.45,0.0520205]
[1744580917086,7.9095,126.47,126.45,0.0520205]
[1744580917386,45.5495,126.47,126.45,0.0520205]
[1744580918484,7.9098,126.46,126.45,0.0520205]
[1744580924698,45.5495,126.47,126.45,0.0520205]
[1744580927200,7.9098,126.46,126.45,0.0520205]
[1744580927703,45.5496,126.47,126.45,0.0520205]
[1744580928402,7.9098,126.46,126.45,0.0520205]
[1744580930204,45.5493,126.47,126.45,0.0520205]
[1744580935406,37.64,126.47,126.45,0.0520205]
[1744580937102,45.5494,126.47,126.45,0.0520205]
[1744580938604,7.9098,126.46,126.45,0.0520205]
[1744580967026,17.32632549,126.46,126.45,0.0520205]
[1744580970627,7.9098,126.46,126.45,0.0520205]
[1744580984738,0.05410617,126.48,126.45,0.0520205]
[1744580984939,39.5559,126.57,126.46,9.41652549]
[1744580984940,37.42,126.53,126.46,9.41652549]
[1744580985138,119.37707531,126.6,126.5,9.41652549]
[1744580985339,9.41652549,126.58,126.52,9.41652549]
[1744580985539,121.8857008,126.6,126.53,3.5928]
[1744580985837,129.7868008,126.6,126.56,7.9035]
[1744580986040,0.05727599,126.58,126.56,7.9035]
[1744580986239,0.05727599,126.58,126.55,0.06023566]
[1744580986438,0.05727599,126.58,126.55,7.96403566]
[1744580986643,0.05727599,126.58,126.55,0.06023566]
[1744580994047,0.05727599,126.58,126.55,7.96433566]
[1744580995245,9.41652549,126.64,126.56,46.81652549]
[1744580995452,9.41652549,126.66,126.59,9.41652549]
[1744580995651,45.2966,126.68,126.63,7.8991]
[1744580996053,46.81652549,126.68,126.63,7.8991]
[1744580996258,46.81652549,126.68,126.64,0.04977834]
[1744580996754,37.4,126.68,126.64,0.04977834]
[1744580997055,54.71262549,126.68,126.64,0.04977834]
[1744580997254,45.2961,126.68,126.64,0.04977834]
[1744580998558,9.41652549,126.7,126.64,0.04977834]
[1744580998747,9.41652549,126.7,126.64,9.46630383]
[1744580998947,9.41652549,126.7,126.64,0.04977834]
[1744580999251,9.41652549,126.7,126.65,7.8978]
[1744580999451,9.41652549,126.7,126.64,9.46630383]
[1744580999928,37.4,126.71,126.64,9.46630383]
[1744581000214,17.31142549,126.7,126.64,17.36450383]
[1744581000561,7.8949,126.7,126.64,17.36450383]
[1744581000755,7.8949,126.7,126.65,7.8979]
[1744581001761,17.31142549,126.7,126.65,7.8979]
[1744581002561,45.2944,126.71,126.66,7.8973]
[1744581002960,37.4,126.71,126.67,0.05830537]
[1744581003463,10.4805,126.75,126.67,0.05830537]
[1744581003763,9.41652549,126.74,126.67,6.5834]
[1744581003962,7.8933,126.73,126.7,0.05271749]
[1744581004463,7.8925,126.74,126.7,0.05271749]
[1744581004664,37.26,126.76,126.7,0.05271749]
[1744581004859,1.37381075,126.82,126.72,9.41652549]
[1744581005057,17.30482549,126.81,126.74,9.41652549]
[1744581005256,37.26,126.83,126.74,9.41652549]
[1744581005462,46.67652549,126.83,126.76,9.47292382]
[1744581006062,9.41652549,126.81,126.76,9.47292382]
[1744581006265,17.30332549,126.83,126.77,7.8902]
[1744581006461,9.41652549,126.83,126.76,9.41652549]
[1744581006660,9.41652549,126.83,126.79,0.05017815]
[1744581007270,43.7915,126.86,126.79,0.05017815]
[1744581007568,9.41652549,126.83,126.79,0.05017815]
[1744581007965,9.41652549,126.81,126.79,0.05017815]
[1744581008161,46.67652549,126.81,126.79,0.05017815]
[1744581008663,7.8886,126.8,126.79,0.05017815]
[1744581009171,17.30512549,126.8,126.79,0.05017815]
[1744581010270,7.8886,126.8,126.79,0.05017815]
[1744581011770,45.148,126.81,126.79,0.05017815]
[1744581012168,37.26,126.81,126.79,0.05017815]
[1744581014773,45.1484,126.81,126.79,0.05017815]
[1744581017578,46.63652549,126.84,126.79,0.05017815]
[1744581017874,37.22,126.84,126.79,0.05017815]
[1744581018178,37.22,126.84,126.8,7.8885]
[1744581021481,37.22,126.84,126.81,7.8879]
[1744581022682,37.22,126.84,126.82,7.8873]
[1744581023183,37.22,126.84,126.82,7.94549502]
[1744581023981,37.22,126.84,126.82,0.05819502]
[1744581025185,45.1065,126.84,126.82,0.05819502]
[1744581027584,37.22,126.84,126.82,0.05819502]
[1744581027787,7.8855,126.86,126.82,0.05819502]
[1744581029285,360.0,126.92,126.82,9.47472051]
[1744581029489,640.6213,126.93,126.8,37.2]
[1744581029490,9.41652549,126.89,126.84,9.41652549]
[1744581029685,9.41652549,126.89,126.85,0.05197028]
[1744581029890,46.55652549,126.9,126.85,0.05197028]
[1744581030391,7.8833,126.89,126.85,7.93737028]
[1744581030888,7.8833,126.89,126.85,0.05197028]
[1744581033094,7.8837,126.88,126.85,0.05197028]
[1744581034994,7.8833,126.89,126.85,17.35369577]
[1744581035187,37.14,126.9,126.85,17.35369577]
[1744581035591,37.14,126.9,126.86,7.8848]
[1744581036395,45.0227,126.9,126.85,17.35369577]
[1744581036895,45.0227,126.9,126.85,7.93717028]
[1744581037286,37.14,126.9,126.85,0.05197028]
[1744581037695,37.14,126.9,126.85,7.93717028]
[1744581037897,37.14,126.9,126.85,0.05197028]
[1744581038291,7.8833,126.89,126.85,0.05197028]
[1744581038993,7.8833,126.89,126.85,7.93717028]
[1744581039301,37.14,126.9,126.86,9.41652549]
[1744581039599,661.98,126.93,126.88,17.29982549]
[1744581040096,661.98,126.93,126.89,0.05436773]
[1744581040297,7.8815,126.92,126.89,0.05436773]
[1744581040988,669.8609,126.93,126.89,0.05436773]
[1744581041492,37.12,126.93,126.9,9.41652549]
[1744581042198,37.12,126.93,126.9,17.29852549]
[1744581042394,37.12,126.93,126.9,7.882]
[1744581042593,37.12,126.93,126.9,17.29852549]
[1744581042793,37.12,126.93,126.9,7.882]
[1744581043095,45.0006,126.93,126.89,17.35359322]
[1744581043294,37.12,126.93,126.89,9.47089322]
[1744581043491,37.12,126.96,126.91,9.41652549]
[1744581043696,37.12,126.96,126.92,7.8806]
[1744581043893,37.12,126.96,126.92,0.05527217]
[1744581044601,37.12,126.96,126.92,7.93577217]
[1744581045201,37.12,126.96,126.92,0.05527217]
[1744581045702,37.12,126.96,126.93,7.88]
[1744581046205,37.12,126.96,126.94,7.8797]
[1744581046504,669.5969,126.99,126.93,9.41652549]
[1744581046699,669.5969,126.99,126.95,7.879]
[1744581047503,44.9969,126.99,126.95,7.879]
[1744581047802,37.12,126.99,126.95,7.879]
[1744581049304,40.4027,127.04,126.95,9.41652549]
[1744581049504,9.41652549,127.03,126.97,9.41652549]
[1744581049800,17.29332549,126.99,126.98,0.0502381]
[1744581050005,54.39332549,126.99,126.92,9.41652549]
[1744581050198,46.51652549,126.99,126.97,0.05514829]
[1744581050401,37.1,126.99,126.94,9.41652549]
[1744581050601,37.1,126.99,126.97,0.05416511]
[1744581054109,44.9768,126.99,126.97,0.05416511]
[1744581059809,37.1,126.99,126.97,0.05416511]
[1744581060311,44.9774,126.99,126.97,0.05416511]
[1744581060610,46.51652549,126.99,126.97,0.05416511]
[1744581061011,7.8774,126.98,126.97,0.05416511]
[1744581062505,49.76022549,126.99,126.91,17.29792549]
[1744581062707,9.41652549,126.97,126.91,17.29792549]
[1744581063211,7.8798,126.95,126.91,9.41652549]
[1744581063415,37.04,126.94,126.91,9.41652549]
[1744581063712,37.09258327,126.94,126.92,0.05028127]
[1744581063907,44.97278327,126.94,126.92,0.05028127]
[1744581064112,37.09258327,126.94,126.92,0.05028127]
[1744581064709,7.8805,126.93,126.92,0.05028127]
[1744581065406,9.41652549,126.93,126.77,287.48951564]
[1744581065711,9.41652549,126.89,126.83,9.41652549]
[1744581065911,7.8848,126.87,126.83,9.41652549]
[1744581066105,37.04,126.88,126.83,9.41652549]
[1744581066306,37.04,126.88,126.82,9.41652549]
[1744581066613,0.05537437,126.86,126.84,0.05960814]
[1744581067418,7.8855,126.85,126.84,0.05960814]
[1744581068914,7.8882,126.81,126.77,18.16820128]
[1744581069114,37.04,126.81,126.77,18.16820128]
[1744581069520,7.8891,126.8,126.76,24.02001233]
[1744581069823,7.8891,126.8,126.76,14.8924]
[1744581070124,7.94852571,126.79,126.77,0.05330084]
[1744581070417,0.05922571,126.79,126.77,0.05330084]
[1744581071823,7.8898,126.78,126.77,0.05330084]
[1744581072524,0.05922571,126.79,126.77,0.05330084]
[1744581073417,0.05922571,126.79,126.77,7.94330084]
[1744581073725,37.06,126.84,126.78,14.62140128]
[1744581073927,7.8853,126.86,126.8,14.62140128]
[1744581074619,7.8853,126.86,126.82,7.8872]
[1744581074927,0.05411934,126.85,126.83,0.05983099]
[1744581075529,7.93961934,126.85,126.83,0.05983099]
[1744581075723,0.05411934,126.85,126.83,0.05983099]
[1744581077323,7.93961934,126.85,126.83,0.05983099]
[1744581078527,0.05411934,126.85,126.83,0.05983099]
[1744581079128,0.05411934,126.85,126.83,7.94633099]
[1744581079428,0.05411934,126.85,126.83,0.05983099]
[1744581080126,0.05411934,126.85,126.84,7.8861]
[1744581091136,0.05411934,126.85,126.84,17.2384309]
[1744581091529,0.05411934,126.85,126.84,7.8861]
[1744581091937,0.05411934,126.85,126.83,7.94623099]
[1744581094138,0.05411934,126.85,126.84,7.8861]
[1744581094531,0.05411934,126.85,126.83,0.05983099]
[1744581094939,0.05411934,126.85,126.83,7.94603099]
[1744581095239,0.05411934,126.85,126.83,0.05983099]
[1744581095640,0.05411934,126.85,126.83,7.94613099]
[1744581097538,0.05411934,126.85,126.83,0.05983099]
[1744581099337,7.93971934,126.85,126.83,0.05983099]
[1744581100942,7.8861,126.84,126.83,0.05983099]
[1744581101340,0.05411934,126.85,126.83,0.05983099]
[1744581101542,7.93991934,126.85,126.83,0.05983099]
[1744581105042,7.8861,126.84,126.83,0.05983099]
[1744581116556,37.03411934,126.85,126.83,0.05983099]
[1744581116946,37.03411934,126.85,126.83,9.41216189]
[1744581117154,37.03411934,126.85,126.83,0.05983099]
[1744581117549,7.8877,126.82,126.78,17.2418309]
[1744581117845,46.3323309,126.85,126.78,17.2418309]
[1744581118257,7.8877,126.82,126.78,17.2418309]
[1744581118562,0.05126658,126.81,126.79,0.05252863]
[1744581119257,7.93926658,126.81,126.79,0.05252863]
[1744581120058,7.8886,126.8,126.79,0.05252863]
[1744581120863,44.8086,126.8,126.79,0.05252863]
[1744581122663,7.8886,126.8,126.79,0.05252863]
[1744581122853,44.8086,126.8,126.79,0.05252863]
[1744581124560,44.8086,126.8,126.79,2.863e-05]
[1744581131056,36.92,126.8,126.72,9.3523309]
[1744581131262,9.3523309,126.78,126.72,9.3523309]
[1744581131463,7.8925,126.74,126.72,9.3523309]
[1744581131761,44.8125,126.74,126.72,9.3523309]
[1744581132068,44.86376929,126.74,126.72,9.40688278]
[1744581133466,7.893,126.73,126.72,9.40688278]
[1744581134062,7.8958,126.69,126.66,7.8972]
[1744581134262,36.94,126.7,126.65,9.3523309]
[1744581134463,36.94,126.69,126.65,9.3523309]
[1744581135164,7.897,126.67,126.65,9.3523309]
[1744581135369,7.897,126.67,126.66,0.05934875]
[1744581136063,0.05283196,126.68,126.66,7.95934875]
[1744581136263,0.05283196,126.68,126.67,9.3523309]
[1744581137570,0.05283196,126.68,126.67,17.2490309]
[1744581137968,7.8939,126.72,126.67,17.2523309]
[1744581138168,36.94,126.74,126.71,9.3523309]
[1744581138570,44.8326,126.74,126.71,17.2462309]
[1744581139373,44.88991935,126.74,126.71,17.30688129]
[1744581139874,36.99731935,126.74,126.72,7.8935]
[1744581140880,44.88971935,126.74,126.72,7.8935]
[1744581141382,44.88971935,126.74,126.71,7.95455039]
[1744581148279,7.8936,126.72,126.71,0.06065039]
[1744581159188,44.7536,126.72,126.71,0.06065039]
[1744581159889,36.86,126.72,126.71,0.06065039]
[1744581160292,44.7536,126.72,126.71,0.06065039]
[1744581161291,7.8936,126.72,126.71,0.06065039]
[1744581168196,44.7532,126.73,126.71,0.06065039]
[1744581168495,36.86,126.73,126.71,0.06065039]
[1744581168696,7.8936,126.72,126.71,0.06065039]
[1744581171691,36.86,126.73,126.71,7.95475039]
[1744581174401,0.05731935,126.74,126.72,7.8936]
[1744581174601,661.82,126.76,126.72,3.4303]
[1744581174800,46.23573458,126.79,126.73,12.91863458]
[1744581175707,7.8901,126.78,126.75,7.8914]
[1744581175908,0.05507016,126.77,126.75,7.94215868]
[1744581181503,0.05507016,126.77,126.76,7.8911]
[1744581181702,0.05507016,126.77,126.75,0.05075868]
[1744581182309,0.05507016,126.77,126.75,7.94225868]
[1744581183510,0.05507016,126.77,126.75,0.05075868]
[1744581188814,0.05507016,126.77,126.75,7.94245868]
[1744581189016,7.94557016,126.77,126.75,0.05075868]
[1744581189213,0.05507016,126.77,126.75,0.05075868]
[1744581189818,0.05507016,126.77,126.75,7.94245868]
[1744581193619,0.05507016,126.77,126.76,7.8911]
[1744581194113,0.05507016,126.77,126.75,0.05075868]
[1744581194319,7.94557016,126.77,126.75,7.94225868]
[1744581195219,7.8911,126.76,126.75,0.05075868]
[1744581196120,7.94587016,126.77,126.75,0.05075868]
[1744581197519,7.94587016,126.77,126.75,7.94225868]
[1744581200023,0.05507016,126.77,126.75,7.94225868]
[1744581203327,0.05507016,126.77,126.75,0.05075868]
[1744581203926,0.05507016,126.77,126.76,7.8911]
[1744581214527,0.05507016,126.77,126.75,17.31789326]
[1744581214733,0.05507016,126.77,126.75,7.94215868]
[1744581217938,0.05507016,126.77,126.76,7.8911]
[1744581218337,0.05507016,126.77,126.75,0.05075868]
[1744581218536,0.05507016,126.77,126.76,7.8911]
[1744581227449,624.92,126.86,126.76,9.37573458]
[1744581227649,9.37573458,126.84,126.76,9.37573458]
[1744581227849,9.37573458,126.84,126.78,9.37573458]
[1744581228245,7.8871,126.83,126.8,7.8883]
[1744581228755,7.94675364,126.83,126.8,7.94267202]
[1744581229854,7.94675364,126.83,126.81,7.8878]
[1744581231357,7.94675364,126.83,126.8,7.94257202]
[1744581232355,7.8875,126.82,126.8,0.05437202]
[1744581235565,0.05965364,126.83,126.81,7.888]
[1744581236567,0.05965364,126.83,126.82,7.8873]
[1744581237365,0.05965364,126.83,126.81,7.8876]
[1744581238864,0.05965364,126.83,126.82,7.8873]
[1744581239361,0.05965364,126.83,126.81,7.8877]
[1744581241069,0.05965364,126.83,126.82,7.8873]
[1744581241565,0.05965364,126.83,126.82,17.26303458]
[1744581241762,36.66,126.88,126.86,7.8847]
[1744581242870,36.70528336,126.88,126.86,0.05577409]
[1744581243168,44.58898336,126.88,126.86,0.05577409]
[1744581247769,0.04528336,126.88,126.87,9.37573458]
[1744581247968,36.56,126.93,126.87,9.37573458]
[1744581248773,36.56,126.93,126.91,7.8817]
[1744581248975,7.8804,126.94,126.91,7.8817]
[1744581249168,9.37573458,126.98,126.91,9.43437848]
[1744581249373,9.37573458,126.98,126.93,7.8801]
[1744581249573,9.37573458,126.98,126.93,7.93305829]
[1744581250179,7.8783,126.97,126.93,7.93305829]
[1744581251373,7.8776,126.98,126.94,7.8799]
[1744581251872,44.4369,126.99,126.95,7.8792]
[1744581252375,44.4369,126.99,126.96,0.05481576]
[1744581252980,7.8758,127.01,126.97,17.25373458]
[1744581253178,9.37573458,127.04,126.97,9.37573458]
[1744581253674,9.37573458,127.04,126.99,0.05880715]
[1744581253872,36.54,127.05,126.99,0.05880715]
[1744581254180,36.54,127.05,127.02,7.8749]
[1744581254573,624.52,127.06,127.02,0.06055066]
[1744581254780,36.54,127.07,127.02,0.06055066]
[1744581254976,36.54,127.07,127.02,9.37573458]
[1744581255280,36.54,127.07,127.03,0.05695012]
[1744581255477,45.91573458,127.07,127.01,9.37573458]
[1744581255784,45.91573458,127.07,127.04,7.93232245]
[1744581256078,36.54,127.07,127.04,7.93232245]
[1744581256380,7.8708,127.09,127.04,7.93232245]
[1744581256574,7.8708,127.09,127.05,7.873]
[1744581257782,10.2921,127.14,127.08,9.37573458]
[1744581257981,10.2921,127.14,127.09,9.37573458]
[1744581258278,36.52,127.17,127.1,0.05043968]
[1744581258580,36.52,127.17,127.11,9.37573458]
[1744581258783,44.3861,127.17,127.12,7.92146407]
[1744581259178,44.3861,127.17,127.12,0.05316407]
[1744581259380,36.52,127.17,127.13,7.8681]
[1744581262184,44.3857,127.17,127.13,7.8681]
[1744581262879,36.52,127.17,127.12,0.05316407]
[1744581263084,39.8022,127.17,127.12,0.05316407]
[1744581263277,14.54748709,127.16,127.12,0.05316407]
[1744581263773,46.6829,127.17,127.12,0.05316407]
[1744581263978,54.5488,127.17,127.12,0.05316407]
[1744581264178,44.3859,127.17,127.12,0.05316407]
[1744581264583,44.3859,127.17,127.12,7.92146407]
[1744581264785,14.54748709,127.21,127.12,0.05316407]
[1744581264786,36.5,127.18,127.12,0.05316407]
[1744581264984,36.5,127.18,127.11,6.9189]
[1744581265184,36.5,127.18,127.14,0.05469977]
[1744581265785,7.866,127.17,127.14,0.05469977]
[1744581265980,36.5,127.18,127.14,0.05469977]
[1744581266184,14.54748709,127.17,127.14,0.05469977]
[1744581266384,7.8688,127.12,127.08,11.2599]
[1744581266585,7.8688,127.12,127.06,51.04748709]
[1744581266785,36.48,127.13,127.06,14.54748709]
[1744581266983,7.8697,127.11,127.07,7.8716]
[1744581267685,0.05309954,127.1,127.08,0.05706728]
[1744581268882,36.48,127.31,127.09,1.57368793]
[1744581269085,3.5211,127.29,127.16,14.54748709]
[1744581269387,14.54748709,127.27,127.13,10.2517]
[1744581269688,14.54748709,127.27,127.15,14.54748709]
[1744581269878,14.54748709,127.27,127.19,0.04999027]
[1744581270082,14.54748709,127.27,127.15,14.54748709]
[1744581270282,14.54748709,127.27,127.22,0.05089883]
[1744581270486,14.54748709,127.27,127.15,14.54748709]
[1744581270687,36.48,127.26,127.15,14.54748709]
[1744581271190,7.8626,127.22,127.15,14.54748709]
[1744581271389,36.48,127.21,127.15,14.54748709]
[1744581271592,0.05089883,127.2,127.17,0.05706482]
[1744581274293,7.91479883,127.2,127.17,0.05706482]
[1744581275101,7.8645,127.19,127.17,0.05706482]
[1744581275399,0.05089883,127.2,127.17,0.05706482]
[1744581275904,7.91489883,127.2,127.17,0.05706482]
[1744581276205,0.05089883,127.2,127.17,0.05706482]
[1744581276401,520.0,127.54,127.19,29.09497418]
[1744581276603,14.54748709,127.37,127.24,14.54748709]
[1744581276804,7.8582,127.3,127.24,22.40868709]
[1744581277106,36.4,127.3,127.21,6.7322]
[1744581277602,39.7286,127.3,127.24,0.05659511]
[1744581278301,3.3286,127.3,127.24,0.05659511]
[1744581278606,36.4,127.29,127.24,0.05659511]
[1744581278804,44.2587,127.29,127.24,7.91749511]
[1744581279207,36.4,127.29,127.24,7.91749511]
[1744581279409,7.8589,127.28,127.24,0.05659511]
[1744581279607,36.4,127.29,127.24,0.05659511]
[1744581281410,7.8595,127.27,127.24,0.05659511]
[1744581282220,7.859,127.28,127.24,0.05659511]
[1744581282422,36.4,127.29,127.24,0.05659511]
[1744581283820,7.8631,127.22,127.17,22.41288709]
[1744581284021,44.2431,127.22,127.17,22.41288709]
[1744581284216,36.38,127.22,127.17,14.54748709]
[1744581284616,7.8638,127.21,127.17,14.54748709]
[1744581284816,7.91526706,127.21,127.18,0.05263355]
[1744581287121,7.864,127.2,127.18,0.05263355]
[1744581287521,0.05146706,127.21,127.18,0.05263355]
[1744581287821,7.91486706,127.21,127.18,0.05263355]
[1744581290123,7.8638,127.2,127.18,0.05263355]
[1744581291324,7.91486706,127.21,127.18,0.05263355]
[1744581291923,7.8638,127.2,127.18,0.05263355]
[1744581292523,7.91486706,127.21,127.18,0.05263355]
[1744581293119,7.8638,127.2,127.18,0.05263355]
[1744581293425,0.05146706,127.21,127.18,0.05263355]
[1744581293922,7.8639,127.2,127.18,0.05263355]
[1744581295320,43.1877,127.28,127.19,14.54748709]
[1744581295527,43.1877,127.28,127.21,14.54748709]
[1744581295915,7.8605,127.26,127.22,7.8623]
[1744581296623,7.8605,127.26,127.23,7.91367128]
[1744581297025,7.8605,127.26,127.23,0.05187128]
[1744581297922,7.8605,127.26,127.23,7.91377128]
[1744581298825,7.8596,127.27,127.23,7.91377128]
[1744581300326,43.1877,127.28,127.24,22.40878709]
[1744581300531,36.38,127.31,127.26,14.54748709]
[1744581301226,7.858,127.3,127.27,0.05910511]
[1744581302827,36.38,127.31,127.27,0.05910511]
[1744581304129,7.8577,127.3,127.27,0.05910511]
[1744581304433,36.38,127.31,127.27,0.05910511]
[1744581305029,6.8295,127.3,127.27,0.05910511]
[1744581306432,7.8588,127.28,127.27,0.05910511]
[1744581312737,7.8588,127.28,127.21,14.54748709]
[1744581312738,7.8605,127.26,127.22,7.8622]
[1744581312937,44.2205,127.26,127.22,7.8622]
[1744581313438,36.36,127.26,127.23,7.8618]
[1744581313642,36.36,127.26,127.21,14.54748709]
[1744581313941,36.41761088,127.26,127.23,0.05687885]
[1744581314238,44.27801088,127.26,127.23,0.05687885]
[1744581314438,36.41761088,127.26,127.23,0.05687885]
[1744581317844,7.8613,127.24,127.23,0.05687885]
[1744581322046,7.8608,127.25,127.23,0.05687885]
[1744581322242,36.41761088,127.26,127.23,0.05687885]
[1744581322748,36.41761088,127.26,127.23,7.91847885]
[1744581323146,36.41761088,127.26,127.23,0.05687885]
[1744581324146,42.70591088,127.26,127.23,0.05687885]
[1744581324744,36.41761088,127.26,127.23,0.05687885]
[1744581324945,36.41761088,127.26,127.23,6.34597885]
[1744581326346,36.41761088,127.26,127.23,0.05687885]
[1744581326646,42.70591088,127.26,127.23,0.05687885]
[1744581327846,36.41761088,127.26,127.23,0.05687885]
[1744581328250,6.289,127.24,127.23,0.05687885]
[1744581332048,36.41761088,127.26,127.23,0.05687885]
[1744581332254,0.05761088,127.26,127.23,0.05687885]
[1744581332556,0.05761088,127.26,127.23,6.34597885]
[1744581332758,0.05761088,127.26,127.23,0.05687885]
[1744581333053,36.43761088,127.26,127.23,0.05687885]
[1744581334149,36.43761088,127.26,127.23,6.34607885]
[1744581335157,36.43761088,127.26,127.24,6.289]
[1744581335756,36.43761088,127.26,127.23,6.34627885]
[1744581336654,0.05761088,127.26,127.23,0.05687885]
[1744581336954,36.36,127.32,127.25,14.54748709]
[1744581337356,42.6452,127.32,127.27,6.2875]
[1744581337550,6.2852,127.32,127.27,6.2875]
[1744581337751,36.36,127.32,127.27,6.2875]
[1744581337946,36.36,127.32,127.28,0.06000859]
[1744581338255,23.09118709,127.37,127.28,0.06000859]
[1744581338453,37.79905163,127.36,127.27,6.2875]
[1744581338650,147.83472263,127.39,127.32,14.54748709]
[1744581339158,147.83472263,127.39,127.34,6.34446375]
[1744581339358,147.83472263,127.39,127.34,0.06036375]
[1744581339560,111.47472263,127.42,127.34,14.60785084]
[1744581339758,111.47472263,127.42,127.36,14.54748709]
[1744581340066,111.47472263,127.42,127.38,0.05427904]
[1744581341558,111.47472263,127.42,127.38,14.60176613]
[1744581341962,111.47472263,127.42,127.39,3.0093]
[1744581342269,36.36,127.43,127.4,6.281]
[1744581342867,36.36,127.43,127.41,6.2805]
[1744581343067,42.6177,127.48,127.41,6.2805]
[1744581343267,42.6177,127.48,127.41,6.33599719]
[1744581343471,36.34,127.48,127.41,0.05549719]
[1744581343865,36.34,127.48,127.41,6.33609719]
[1744581344270,36.34,127.48,127.41,0.05549719]
[1744581345671,6.2781,127.47,127.41,0.05549719]
[1744581346272,6.2781,127.47,127.41,6.33609719]
[1744581346767,36.34,127.48,127.42,6.28]
[1744581346967,36.34,127.48,127.42,20.82748709]
[1744581347271,36.34,127.48,127.45,6.2787]
[1744581347473,36.32,127.51,127.44,0.055981]
[1744581347774,36.32,127.51,127.42,14.54748709]
[1744581347974,36.32,127.51,127.46,0.04983584]
[1744581348174,36.32,127.51,127.46,6.32803584]
[1744581348768,42.5958,127.51,127.46,6.32803584]
[1744581348966,8.3424,127.54,127.46,0.04983584]
[1744581349173,8.3424,127.54,127.46,14.54748709]
[1744581349368,38.78,127.58,127.49,0.05207729]
[1744581349573,1.43691445,127.57,127.48,14.54748709]
[1744581349774,1.43691445,127.57,127.52,0.05255468]
[1744581350079,38.78,127.58,127.52,6.32765468]
[1744581350579,45.0527,127.58,127.52,0.05255468]
[1744581350880,44.66,127.62,127.52,0.05255468]
[1744581351075,44.66,127.62,127.54,6.2741]
[1744581351283,44.66,127.62,127.49,8.5217]
[1744581351483,44.66,127.62,127.57,0.05009622]
[1744581351680,44.66,127.62,127.55,6.2736]
[1744581351978,44.66,127.62,127.58,0.0579836]